fUST/lending_fUST_20241125
["ID","MTS","AMOUNT","RATE_DAILY","PERIOD"]
[343210609,1732464384042,5000.0,0.0002,2]
[343210610,1732464399678,5000.0,0.0002,2]
[343210611,1732464414941,1329.53806286,0.0002,2]
[343210612,1732464416152,-235.7522136,0.00020349,2]
[343210613,1732464493550,1123.0,0.00028355,120]
[343210643,1732464565729,2510.7498229,0.0002,2]
[343210689,1732464632776,-164.37298704,0.00021,2]
[343210691,1732464632785,-300.0,0.00021184,2]
[343210693,1732464632795,-300.0,0.00021184,2]
[343210695,1732464632804,-9639.88894666,0.00021185,2]
[343210697,1732464632817,-5000.0,0.00021185,2]
[343210699,1732464632831,-420.0,0.00023302,2]
[343210701,1732464632844,-157.676933,0.00023449,2]
[343210703,1732464632855,-161.976788,0.00023652,2]
[343210706,1732464632865,-301.569004,0.00024121,2]
[343210708,1732464632874,-200.0,0.00024658,15]
[343210710,1732464632883,-301.569004,0.00024806,2]
[343210711,1732464632892,-303.351856,0.00025,2]
[343210713,1732464632901,-300.0,0.00025,2]
[343210715,1732464632910,-300.0,0.00025,2]
[343210717,1732464632919,-274.0,0.00025,2]
[343210719,1732464632928,-301.569004,0.00025491,2]
[343210721,1732464632938,-570.0,0.00025632,2]
[343210722,1732464632950,-300.0,0.000258,2]
[343210724,1732464632962,-207.18913496,0.00026744,2]
[343210725,1732464632972,-24900.0,0.00026745,2]
[343210727,1732464632981,-300.0,0.000268,2]
[343210730,1732464632991,-600.0,0.00027381,2]
[343210733,1732464632999,-386.17,0.000275,2]
[343210734,1732464633008,-1105.0,0.00027573,2]
[343210737,1732464633017,-2380.0,0.00027573,2]
[343210740,1732464633027,-300.0,0.000276,13]
[343210742,1732464633037,-195.61298553,0.0002761,2]
[343210744,1732464633047,-172.763228,0.00027641,2]
[343210745,1732464633057,-600.0,0.00027666,2]
[343210746,1732464633067,-195.61298553,0.00027774,2]
[343210748,1732464633077,-300.0,0.000278,2]
[343210749,1732464633087,-5836.81097475,0.00027846,2]
[343210750,1732464633097,-151.0,0.00027899,7]
[343210751,1732464633107,-195.61298553,0.00027939,2]
[343210752,1732464633117,-600.0,0.00027952,2]
[343210753,1732464633126,-2000.0,0.00028,2]
[343210754,1732464633136,-5836.81097476,0.00028002,2]
[343210755,1732464633147,-195.61298553,0.00028103,2]
[343210756,1732464633157,-175.51896304,0.00028168,2]
[343210757,1732464633167,-335.85,0.00028212,3]
[343210758,1732464633177,-335.85,0.00028212,3]
[343210759,1732464633187,-447.8,0.00028212,3]
[343210760,1732464633200,-568.66,0.00028212,10]
[343210761,1732464633210,-223.9,0.00028212,3]
[343210762,1732464633220,-973.75,0.00028212,10]
[343210763,1732464633230,-223.9,0.00028212,3]
[343210764,1732464633241,-203.43610784,0.00028221,2]
[343210765,1732464633251,-500.0,0.00028221,2]
[343210766,1732464633260,-516.33709139,0.00028221,2]
[343210767,1732464633271,-51641.34308544,0.00028222,2]
[343210768,1732464633289,-811.46,0.00028212,10]
[343210769,1732464633299,-1427.01085436,0.00028222,2]
[343210770,1732464633311,-480.215,0.00028222,2]
[343210832,1732464638933,-291.454,0.00028222,2]
[343210835,1732464638944,-1255.21723207,0.00028222,2]
[343210837,1732464638958,-95902.37519291,0.00028222,2]
[343210841,1732464638987,-15195.86959667,0.00028222,2]
[343210991,1732464640673,-961.54357761,0.00028222,2]
[343210993,1732464640685,-82844.97146094,0.00028222,2]
[343210996,1732464640695,-195.61298553,0.00028268,2]
[343210997,1732464640707,-362.094,0.00028321,19]
[343210999,1732464640717,-13669.95245735,0.00028322,2]
[343211001,1732464640732,-2649.84608871,0.00028322,2]
[343211003,1732464640743,-428.01524699,0.00028322,2]
[343211005,1732464640755,-575.61232687,0.00028322,2]
[343211322,1732464643729,-676.21,0.00028212,10]
[343211323,1732464643739,-1301.6081897,0.00028322,2]
[343211324,1732464643752,-674.03610755,0.00028322,2]
[343211352,1732464644013,-0.79998301,0.00028322,2]
[343211354,1732464644026,-7678.36,0.00028322,2]
[343211356,1732464644038,-1849.53429406,0.00028322,2]
[343211359,1732464644049,-9250.45271429,0.00028322,2]
[343211361,1732464644060,-2399.48034141,0.00028322,2]
[343211363,1732464644071,-4148.29910337,0.00028322,2]
[343211365,1732464644083,-439.66331416,0.00028322,2]
[343211368,1732464644095,-385.2984,0.00028322,2]
[343211648,1732464647006,-550.15446998,0.00028322,2]
[343211650,1732464647017,-3244.87526232,0.00028322,2]
[343211653,1732464647029,-9605.89999999,0.00028322,2]
[343211712,1732464647578,-5550.04823204,0.00028322,2]
[343212517,1732465390765,164.149461,0.00013973,2]
[343212522,1732465628308,5049.0,0.0002,2]
[343212524,1732465716963,4600.0,0.00011,2]
[343212532,1732465722013,2891.79445011,0.000109,2]
[343212577,1732465831825,-1042.84339234,0.0002376,2]
[343212578,1732465831834,-543.66859721,0.00024,2]
[343212579,1732465831843,-164.149461,0.00025156,2]
[343212580,1732465831852,-161.976788,0.00025271,2]
[343212581,1732465831865,-24900.0,0.0002536,2]
[343212582,1732465831875,-844.3340769,0.00025583,2]
[343212583,1732465831884,-652.4521586,0.00026384,2]
[343212584,1732465831893,-341.432,0.00026849,14]
[343212585,1732465831902,-4149.35,0.00027365,30]
[343212586,1732465831913,-406.41,0.000277,2]
[343212587,1732465831923,-250.1356,0.00028005,15]
[343212588,1732465831932,-3765.18560034,0.00028022,2]
[343212596,1732465837948,-23567.35622446,0.00028022,2]
[343212597,1732465837959,-606.88,0.00028112,3]
[343212598,1732465837971,-303.44,0.00028112,3]
[343212599,1732465837979,-151.72,0.00028112,3]
[343212600,1732465837988,-455.19,0.00028112,3]
[343212601,1732465837998,-676.21,0.00028112,10]
[343212602,1732465838007,-563.51,0.00028112,10]
[343212603,1732465838016,-469.59,0.00028112,10]
[343212604,1732465838026,-391.33,0.00028112,10]
[343212605,1732465838035,-500.0,0.00028121,2]
[343212606,1732465838044,-500.0,0.00028121,2]
[343212607,1732465838054,-583.64718307,0.00028121,2]
[343212608,1732465838073,-500.0,0.00028121,2]
[343212609,1732465838083,-4080.81418868,0.00028122,2]
[343212739,1732465842962,-182.81882525,0.00024555,3]
[343212741,1732465842973,-5982.89125708,0.00028122,2]
[343212744,1732465842985,-482.7891238,0.00028122,2]
[343212754,1732465843078,-1926.20824923,0.00028122,2]
[343212756,1732465843090,-10359.67673605,0.00028122,2]
[343212810,1732465845897,-1757.91124783,0.00028122,2]
[343212822,1732466085605,1577.0,0.0002835,120]
[343212824,1732466141443,170.12455,0.00013973,2]
[343212828,1732466824717,170.12455,0.00013973,2]
[343212865,1732467031944,-714.78829939,0.0002079,2]
[343212866,1732467031953,-186.0,0.00021,2]
[343212867,1732467031963,-3941.81005415,0.00022257,2]
[343212868,1732467031975,-9469.35199999,0.00022257,2]
[343212869,1732467031999,-11488.83794586,0.00022257,2]
[343212870,1732467032009,-300.0,0.00022913,2]
[343212871,1732467032019,-300.0,0.00022913,2]
[343212872,1732467032031,-6708.00151254,0.00022914,2]
[343212873,1732467032043,-870.67010651,0.00022914,2]
[343212874,1732467032054,-266.14,0.00022914,2]
[343212890,1732467038090,-2186.05051334,0.00022914,2]
[343212891,1732467038204,-3413.434693,0.00022914,2]
[343212892,1732467038216,-599.98798803,0.00022914,2]
[343213060,1732467039857,-1040.73162206,0.00022914,2]
[343213066,1732467039915,-271.09178978,0.00022914,2]
[343213067,1732467039928,-1928.8614043,0.00022914,2]
[343213068,1732467039940,-314.78829939,0.00022914,2]
[343213383,1732467043403,-1161.8597166,0.00022914,2]
[343213671,1732467046210,-17578.03524145,0.00022914,2]
[343213673,1732467046219,-848.79203806,0.00022962,2]
[343213675,1732467046228,-167.405134,0.00023062,2]
[343213677,1732467046237,-1712.529596,0.00023183,2]
[343213679,1732467046247,-1712.529596,0.00023868,2]
[343213681,1732467046256,-339.619,0.00023985,5]
[343213683,1732467046269,-500.0,0.00024183,2]
[343213685,1732467046282,-444.828227,0.0002439,2]
[343213687,1732467046296,-355.49877,0.0002439,2]
[343213689,1732467046306,-533.071864,0.0002439,2]
[343213691,1732467046316,-172.59621,0.0002439,2]
[343213693,1732467046325,-500.0,0.00024457,2]
[343213695,1732467046335,-1712.529596,0.00024553,2]
[343213697,1732467046345,-444.828227,0.00024695,2]
[343213699,1732467046354,-355.49877,0.00024695,2]
[343213701,1732467046365,-533.071864,0.00024695,2]
[343213703,1732467046375,-500.0,0.00024731,2]
[343213705,1732467046384,-444.828227,0.00025,2]
[343213707,1732467046394,-355.49877,0.00025,2]
[343213710,1732467046403,-533.071864,0.00025,2]
[343213712,1732467046413,-500.0,0.00025005,2]
[343213713,1732467046421,-151.0,0.00025106,5]
[343213716,1732467046431,-152.0,0.00025114,2]
[343213718,1732467046440,-500.0,0.00025279,2]
[343213720,1732467046449,-444.828227,0.00025305,2]
[343213722,1732467046459,-355.49877,0.00025305,2]
[343213723,1732467046468,-533.071864,0.00025305,2]
[343213725,1732467046477,-500.0,0.00025553,2]
[343213728,1732467046487,-444.828227,0.0002561,2]
[343213729,1732467046496,-355.49877,0.0002561,2]
[343213731,1732467046506,-533.071864,0.0002561,2]
[343213734,1732467046515,-151.0,0.00025669,6]
[343213736,1732467046525,-500.0,0.00025827,2]
[343213738,1732467046534,-500.0,0.00026101,2]
[343213739,1732467046548,-151.0,0.00026233,6]
[343213742,1732467046557,-170.12455,0.00026274,2]
[343213743,1732467046567,-500.0,0.00026375,2]
[343213745,1732467046576,-500.0,0.00026649,2]
[343213747,1732467046586,-157.13998528,0.00026746,2]
[343213749,1732467046595,-151.0,0.00026796,6]
[343213751,1732467046605,-500.0,0.0002682,2]
[343213753,1732467046614,-500.0,0.0002682,2]
[343213755,1732467046623,-235.73307692,0.0002682,2]
[343213757,1732467046633,-500.0,0.0002682,2]
[343213759,1732467046643,-500.0,0.0002682,2]
[343213761,1732467046652,-597.12968239,0.0002682,2]
[343213763,1732467046661,-620.0,0.0002682,2]
[343213765,1732467046670,-500.0,0.0002682,2]
[343213767,1732467046679,-500.0,0.0002682,2]
[343213769,1732467046688,-500.0,0.0002682,2]
[343213771,1732467046698,-395.34149409,0.0002682,2]
[343213773,1732467046708,-500.0,0.0002682,2]
[343213775,1732467046717,-500.0,0.00026923,2]
[343213777,1732467046726,-500.96071574,0.0002695,2]
[343213779,1732467046735,-432.00595815,0.0002695,2]
[343213781,1732467046745,-173.47186863,0.0002695,2]
[343213783,1732467046755,-500.0,0.0002695,2]
[343213785,1732467046764,-366.47374405,0.0002695,2]
[343213787,1732467046774,-500.0,0.0002695,2]
[343213789,1732467046783,-514.45234079,0.0002695,2]
[343213791,1732467046795,-247.11675622,0.0002695,2]
[343213793,1732467046804,-497.67155365,0.0002695,2]
[343213795,1732467046813,-364.37064794,0.0002695,2]
[343213797,1732467046823,-151.0756617,0.0002695,2]
[343213799,1732467046832,-160.87308431,0.0002695,2]
[343213801,1732467046842,-368.92,0.0002699,3]
[343213803,1732467046851,-307.44,0.0002699,3]
[343213805,1732467046861,-153.72,0.0002699,3]
[343213807,1732467046871,-461.19,0.0002699,3]
[343213809,1732467046880,-22000.0,0.00027,3]
[343213811,1732467046890,-157.13998528,0.00027053,2]
[343213813,1732467046899,-500.0,0.00027197,2]
[343213815,1732467046910,-151.0,0.00027359,7]
[343213817,1732467046919,-151.0,0.00027359,7]
[343213819,1732467046929,-157.13998528,0.0002736,2]
[343213821,1732467046939,-310.89848453,0.0002743,2]
[343213823,1732467046948,-500.0,0.00027471,2]
[343213825,1732467046958,-1000.0,0.00027498,5]
[343213827,1732467046967,-157.13998528,0.00027666,2]
[343213829,1732467046977,-500.0,0.00027745,2]
[343213831,1732467046986,-151.0,0.00027923,7]
[343213833,1732467046995,-151.0,0.00027923,7]
[343213835,1732467047005,-157.13998528,0.00027973,2]
[343213837,1732467047014,-326.11,0.00027974,10]
[343213839,1732467047024,-5000.0,0.00027984,19]
[343213841,1732467047033,-5000.0,0.00027984,18]
[343213843,1732467047047,-5000.0,0.00027984,16]
[343213845,1732467047057,-5000.0,0.00027984,14]
[343213858,1732467047160,-5000.0,0.00027984,15]
[343213860,1732467047170,-365.77,0.00028,2]
[343213862,1732467047179,-203.77614295,0.00028021,2]
[343213864,1732467047188,-187.66328875,0.00028021,2]
[343213866,1732467047198,-180.21141736,0.00028021,2]
[343213868,1732467047207,-500.0,0.00028021,2]
[343213870,1732467047216,-166899.6716579,0.00028022,2]
[343213872,1732467047225,-4459.7413891,0.00028022,2]
[343214235,1732467192426,3000.0,0.000182,2]
[343214236,1732467192737,3000.0,0.0001821,2]
[343214237,1732467193059,3000.0,0.0001822,2]
[343214238,1732467193326,3000.0,0.0001823,2]
[343214239,1732467193643,3000.0,0.0001824,2]
[343214240,1732467193960,3000.0,0.0001825,2]
[343214241,1732467194298,3000.0,0.0001826,2]
[343214242,1732467194600,4470.351649,0.0001827,2]
[343214243,1732467475322,151.0,0.0002,2]
[343214252,1732467654117,11290.6571714,0.00020055,2]
[343214253,1732467720050,170.12455,0.00013973,2]
[343214256,1732468012286,-235.7522136,0.0002076,2]
[343214301,1732468235616,-787.10513851,0.00021,2]
[343214308,1732468235679,-1152.27724123,0.00021,2]
[343214311,1732468235692,-713.59446931,0.00021,2]
[343214459,1732468238407,-347.02315095,0.00021,2]
[343214460,1732468238417,-3000.0,0.0002101,2]
[343214461,1732468238427,-9566.0,0.00021018,2]
[343214462,1732468238436,-3000.0,0.0002102,2]
[343214463,1732468238445,-3000.0,0.0002103,2]
[343214464,1732468238455,-3000.0,0.0002104,2]
[343214465,1732468238465,-3000.0,0.0002105,2]
[343214466,1732468238474,-3000.0,0.0002106,2]
[343214467,1732468238484,-3000.0,0.0002107,2]
[343214468,1732468238493,-3000.0,0.0002108,2]
[343214469,1732468238503,-3000.0,0.0002109,2]
[343214470,1732468238512,-3000.0,0.000211,2]
[343214471,1732468238521,-222.17458372,0.000211,2]
[343214472,1732468238530,-3000.0,0.0002111,2]
[343214473,1732468238540,-3000.0,0.0002112,2]
[343214474,1732468238549,-3000.0,0.0002113,2]
[343214475,1732468238558,-3000.0,0.0002114,2]
[343214477,1732468238571,-3000.0,0.0002115,2]
[343214478,1732468238580,-3000.0,0.0002116,2]
[343214480,1732468238590,-3000.0,0.0002117,2]
[343214482,1732468238599,-3000.0,0.0002118,2]
[343214484,1732468238608,-3000.0,0.0002119,2]
[343214486,1732468238618,-3000.0,0.000212,2]
[343214488,1732468238631,-3000.0,0.0002121,2]
[343214489,1732468238641,-3000.0,0.0002122,2]
[343214490,1732468238651,-3000.0,0.0002123,2]
[343214491,1732468238662,-500.0,0.00021231,2]
[343214492,1732468238671,-614.59492485,0.00021231,2]
[343214493,1732468238680,-500.0,0.00021231,2]
[343214494,1732468238691,-500.0,0.00021231,2]
[343214495,1732468238705,-500.0,0.00021231,2]
[343214496,1732468238715,-220.62962399,0.00021231,2]
[343214497,1732468238725,-500.0,0.00021231,2]
[343214498,1732468238735,-360.20019031,0.00021231,2]
[343214499,1732468238744,-500.0,0.00021231,2]
[343214500,1732468238755,-500.0,0.00021231,2]
[343214501,1732468238764,-317.47414139,0.00021231,2]
[343214502,1732468238774,-500.0,0.00021231,2]
[343214503,1732468238784,-3000.0,0.0002124,2]
[343214504,1732468238794,-3000.0,0.0002125,2]
[343214505,1732468238804,-3000.0,0.0002126,2]
[343214506,1732468238817,-276.69,0.0002126,3]
[343214507,1732468238827,-500.0,0.00021267,2]
[343214508,1732468238836,-500.70622727,0.00021267,2]
[343214509,1732468238845,-501.27396191,0.00021267,2]
[343214510,1732468238855,-388.3931092,0.00021267,2]
[343214520,1732468240322,-111.6068908,0.00021267,2]
[343214521,1732468240332,-155.6350798,0.00021267,2]
[343214580,1732468243632,-344.3649202,0.00021267,2]
[343214582,1732468243641,-481.73170237,0.00021267,2]
[343214584,1732468243650,-142.90337743,0.00021267,2]
[343214700,1732468246133,-187.80983742,0.00021267,2]
[343214702,1732468246142,-3000.0,0.0002127,2]
[343214704,1732468246152,-3000.0,0.0002128,2]
[343214706,1732468246161,-2692.19016258,0.0002129,2]
[343214708,1732468246173,-307.80983742,0.0002129,2]
[343214710,1732468246182,-111.71786339,0.000213,2]
[343215065,1732468418049,160.090582,0.00013973,2]
[343215066,1732468441833,400.0,0.000201,2]
[343215074,1732468759938,167.405134,0.00020086,2]
[343215078,1732469022959,400.0,0.000201,2]
[343215079,1732469039692,-224.89,0.00028398,120]
[343215080,1732469039738,-39.42640877,0.00028398,120]
[343215081,1732469039779,-224.89,0.0002961,120]
[343215082,1732469039800,-3235.68359023,0.00029615,120]
[343215083,1732469039868,-264.31640877,0.00029615,120]
[343215084,1732469039890,-796.1513163,0.0002962,120]
[343215085,1732469039912,-439.74162023,0.0002962,120]
[343215086,1732469039967,-21.84271198,0.0002962,120]
[343215087,1732469039991,-242.47369679,0.0002962,120]
[343215088,1732469040019,-151.0,0.0003,120]
[343215089,1732469040042,-1003.13512137,0.0003,120]
[343215090,1732469040064,-200.0,0.0003,120]
[343215091,1732469040088,-200.0,0.0003,120]
[343215092,1732469040111,-151.0,0.0003,120]
[343215093,1732469040134,-500.0,0.00030136,120]
[343215094,1732469040155,-500.0,0.00030136,120]
[343215095,1732469040177,-35.99759542,0.00030136,120]
[343215097,1732469058911,166.742152,0.00013973,2]
[343215098,1732469092443,1505.13512137,0.00028161,120]
[343215099,1732469092468,264.31640877,0.00028161,120]
[343215100,1732469092490,300.0,0.00028161,120]
[343215101,1732469092516,1529.94077416,0.00028161,120]
[343215102,1732469100557,276.15922584,0.00028,120]
[343215103,1732469100589,3506.07711299,0.00028,120]
[343215117,1732469298785,9284.72146949,0.0002,2]
[343215118,1732469318269,19081.73402109,0.00019,2]
[343215120,1732469320317,158443.24277265,0.0001999,2]
[343215159,1732469432428,-1710.11705436,0.0002035,2]
[343215160,1732469432489,-433.23921769,0.0002035,2]
[343215161,1732469432500,-1812.19395265,0.0002035,2]
[343215162,1732469432509,-300.0,0.00020886,2]
[343215163,1732469432519,-300.0,0.00020886,2]
[343215164,1732469432528,-4562.12495841,0.00020887,2]
[343215165,1732469432539,-2004.91296757,0.00020887,2]
[343215166,1732469432548,-1428.84583427,0.0002127,2]
[343215167,1732469432557,-2888.28213661,0.000213,2]
[343215168,1732469432566,-3000.0,0.0002131,2]
[343215169,1732469432576,-39.45906155,0.0002132,2]
[343215197,1732469438420,-777.15283752,0.0002132,2]
[343215273,1732469440336,-2183.38810093,0.0002132,2]
[343215275,1732469440345,-3000.0,0.0002133,2]
[343215276,1732469440356,-3000.0,0.0002134,2]
[343215278,1732469440365,-674.38145375,0.0002135,2]
[343215312,1732469444001,-427.02274434,0.0002135,2]
[343215313,1732469444124,-1898.59580191,0.0002135,2]
[343215315,1732469444134,-3000.0,0.0002136,2]
[343215317,1732469444144,-1066.91975191,0.0002137,2]
[343215359,1732469446288,-747.89774787,0.0002137,2]
[343215366,1732469446352,-1185.18250022,0.0002137,2]
[343215368,1732469446366,-3000.0,0.0002138,2]
[343215370,1732469446376,-1959.47484912,0.0002139,2]
[343215373,1732469446388,-1040.52515088,0.0002139,2]
[343215375,1732469446398,-1368.27484912,0.000214,2]
[343215431,1732469560126,500.0,0.00028162,120]
[343215432,1732469582589,4756.0,0.0002,2]
[343215433,1732469582861,2376.0,0.0002,2]
[343215434,1732469583157,2376.0,0.0002,2]
[343215435,1732469583462,2376.0,0.0002,2]
[343215436,1732469583815,2376.0,0.0002,2]
[343215437,1732469796099,164.635229,0.00013973,2]
[343215438,1732469816568,160.0,0.0002,2]
[343215439,1732469817798,160.0,0.0002,2]
[343215440,1732469819178,160.0,0.0002,2]
[343215441,1732469820439,160.0,0.0002,2]
[343215442,1732469822296,160.0,0.0002,2]
[343215443,1732469824153,160.0,0.0002,2]
[343215444,1732469825514,160.0,0.0002,2]
[343215445,1732469826718,160.0,0.0002,2]
[343215446,1732469827951,160.0,0.0002,2]
[343215447,1732469829912,160.0,0.0002,2]
[343215448,1732469831737,160.0,0.0002,2]
[343215449,1732469833373,160.0,0.0002,2]
[343215450,1732469834633,160.0,0.0002,2]
[343215451,1732469835896,160.0,0.0002,2]
[343215452,1732469837690,160.0,0.0002,2]
[343215457,1732469944394,9924.0,0.0002,2]
[343215458,1732469944685,4960.0,0.0002,2]
[343215459,1732469945019,4960.0,0.0002,2]
[343215460,1732469945339,4960.0,0.0002,2]
[343215461,1732469945624,4960.0,0.0002,2]
[343215464,1732470452035,159.418247,0.00013973,2]
[343215506,1732470632654,-5000.0,0.00020876,2]
[343215507,1732470632664,-159.418247,0.00021209,2]
[343215508,1732470632674,-3048.782273,0.000213,2]
[343215509,1732470632684,-300.0,0.00021384,2]
[343215510,1732470632694,-48779.0,0.00021384,2]
[343215511,1732470632704,-1631.72515088,0.000214,2]
[343215512,1732470632713,-3000.0,0.0002141,2]
[343215513,1732470632723,-3000.0,0.0002142,2]
[343215514,1732470632732,-3000.0,0.0002143,2]
[343215515,1732470632742,-3514.303306,0.0002144,2]
[343215516,1732470632751,-3048.78227299,0.00022329,2]
[343215517,1732470632760,-294.76531711,0.00023354,2]
[343215518,1732470632770,-3048.78227299,0.00023358,2]
[343215519,1732470632780,-316.365,0.00023454,3]
[343215520,1732470632789,-258.70721515,0.00023467,2]
[343215521,1732470632798,-3048.78227299,0.00024387,2]
[343215522,1732470632808,-172.135064,0.0002439,2]
[343215523,1732470632817,-888.570634,0.0002439,2]
[343215524,1732470632826,-294.76531709,0.00024616,2]
[343215525,1732470632835,-380.0,0.00024658,2]
[343215526,1732470632846,-888.570634,0.00024695,2]
[343215527,1732470632855,-234.58826896,0.00024968,2]
[343215528,1732470632866,-500.0,0.00024968,2]
[343215529,1732470632875,-419.11681631,0.00024968,2]
[343215530,1732470632884,-500.0,0.00024968,2]
[343215531,1732470632894,-214.02809956,0.00024968,2]
[343215532,1732470632903,-621.08145224,0.00024968,2]
[343215533,1732470632913,-500.0,0.00024969,7]
[343215534,1732470632923,-691.76,0.0002499,3]
[343215535,1732470632932,-552.4,0.0002499,10]
[343215536,1732470632941,-460.33,0.0002499,10]
[343215537,1732470632951,-300.0,0.00025,2]
[343215538,1732470632960,-300.0,0.00025,2]
[343215539,1732470632969,-300.0,0.00025,2]
[343215540,1732470632979,-274.099999,0.00025,2]
[343215541,1732470632988,-303.42475521,0.00025,2]
[343215542,1732470632997,-17491.04992683,0.00025,2]
[343215543,1732470633006,-888.570634,0.00025,2]
[343215544,1732470633015,-230.57,0.0002508,3]
[343215545,1732470633025,-174280.62013651,0.0002509,2]
[343215546,1732470633034,-151.0,0.0002509,7]
[343215547,1732470633043,-303.42475521,0.0002525,2]
[343215548,1732470633053,-888.570634,0.00025305,2]
[343215549,1732470633062,-3048.78227299,0.00025415,2]
[343215550,1732470633073,-303.42475521,0.000255,2]
[343215551,1732470633082,-172.135064,0.0002561,2]
[343215552,1732470633091,-888.570634,0.0002561,2]
[343215553,1732470633101,-303.13315834,0.0002575,2]
[343215554,1732470633111,-300.0,0.000258,2]
[343215555,1732470633121,-294.76531709,0.00025877,2]
[343215556,1732470633130,-660.0,0.00026384,2]
[343215557,1732470633139,-3048.78227299,0.00026444,2]
[343215558,1732470633149,-461.14,0.0002645,3]
[343215559,1732470633158,-500.0,0.00026613,7]
[343215560,1732470633168,-380.51782428,0.000268,2]
[343215561,1732470633178,-300.0,0.000268,2]
[343215562,1732470633187,-5443.62670126,0.00027,10]
[343215563,1732470633196,-294.76531709,0.00027139,2]
[343215564,1732470633206,-401.9234,0.00027381,15]
[343215565,1732470633216,-500.0,0.00027397,2]
[343215566,1732470633225,-3048.78227299,0.00027473,2]
[343215567,1732470633235,-611.39,0.000275,2]
[343215568,1732470633245,-151.0,0.000275,17]
[343215569,1732470633254,-300.0,0.000278,2]
[343215570,1732470633264,-154.021445,0.00027822,7]
[343215571,1732470633273,-151.0,0.00027822,7]
[343215572,1732470633283,-151.0,0.00027822,7]
[343215573,1732470633292,-151.0,0.00027822,7]
[343215574,1732470633301,-151.0,0.00027822,7]
[343215575,1732470633311,-151.0,0.00027822,7]
[343215576,1732470633320,-151.0,0.00027822,7]
[343215577,1732470633329,-151.0,0.00027822,7]
[343215578,1732470633339,-151.0,0.00027822,7]
[343215579,1732470633348,-191.558303,0.00027822,7]
[343215580,1732470633357,-191.558303,0.00027822,7]
[343215581,1732470633368,-151.0,0.00027822,7]
[343215582,1732470633378,-151.0,0.00027822,7]
[343215583,1732470633388,-151.0,0.00027822,7]
[343215584,1732470633397,-914.284859,0.00027822,7]
[343215585,1732470633406,-914.284859,0.00027822,7]
[343215586,1732470633418,-151.0,0.00027822,7]
[343215587,1732470633430,-151.0,0.00027822,7]
[343215588,1732470633439,-325.027763,0.00027822,7]
[343215589,1732470633448,-166.690974,0.00027822,7]
[343215590,1732470633459,-166.690974,0.00027822,7]
[343215591,1732470633468,-1088.01957,0.00027822,7]
[343215592,1732470633478,-1088.01957,0.00027822,7]
[343215593,1732470633488,-322.984515,0.00027822,7]
[343215594,1732470633508,-322.984515,0.00027822,7]
[343215595,1732470633519,-600.231238,0.00027822,7]
[343215596,1732470633528,-600.231238,0.00027822,7]
[343215597,1732470633539,-1015.806133,0.00027822,7]
[343215598,1732470633548,-1015.806133,0.00027822,7]
[343215599,1732470633558,-151.0,0.00027822,7]
[343215600,1732470633567,-151.0,0.00027822,7]
[343215601,1732470633578,-151.0,0.00027822,7]
[343215602,1732470633587,-151.0,0.00027822,7]
[343215603,1732470633597,-1056.253582,0.00027822,7]
[343215604,1732470633608,-1056.253582,0.00027822,7]
[343215605,1732470633619,-151.0,0.00027822,7]
[343215606,1732470633629,-151.0,0.00027822,7]
[343215607,1732470633640,-1935.245469,0.00027822,7]
[343215608,1732470633650,-1935.245469,0.00027822,7]
[343215609,1732470633660,-162.388961,0.00027822,7]